[Event "Titled Tuesday Blitz May 24 Early 2022"]
[White "Kovalev, Vladislav"]
[Black "Kollars, Dmitrij"]
[WhiteFideId "13504398"]
[BlackFideId "12909572"]
[WhiteElo "2530"]
[BlackElo "2584"]
[Result "0-1"]
[Round "06"]
[TimeControl "180+1"]
[Date "2022.05.24"]
[WhiteClock "0:00:03"]
[BlackClock "0:00:13"]

1. e4 {[%clk 0:03:00]}  c5 {[%clk 0:02:59]} 2. Be2 {[%clk 0:03:00]}  Nc6 {[%clk 0:02:58]} 3. d3 {[%clk 0:03:01]}  d5 {[%clk 0:02:55]} 4. f4 {[%clk 0:03:02]}  g6 {[%clk 0:02:49]} 5. c3 {[%clk 0:03:01]}  Bg7 {[%clk 0:02:48]} 6. Nf3 {[%clk 0:03:01]}  Bg4 {[%clk 0:02:35]} 7. O-O {[%clk 0:02:59]}  e6 {[%clk 0:02:35]} 8. Be3 {[%clk 0:02:57]}  d4 {[%clk 0:02:30]} 9. Bf2 {[%clk 0:02:57]}  Bxf3 {[%clk 0:02:26]} 10. Bxf3 {[%clk 0:02:57]}  Nge7 {[%clk 0:02:26]} 11. Qc2 {[%clk 0:02:51]}  O-O {[%clk 0:02:26]} 12. Nd2 {[%clk 0:02:51]}  Rc8 {[%clk 0:02:26]} 13. a3 {[%clk 0:02:43]}  Qc7 {[%clk 0:02:15]} 14. g3 {[%clk 0:02:42]}  Rfd8 {[%clk 0:02:08]} 15. e5 {[%clk 0:02:28]}  Nf5 {[%clk 0:01:57]} 16. Ne4 {[%clk 0:02:25]}  Nce7 {[%clk 0:01:47]} 17. c4 {[%clk 0:01:53]}  Ne3 {[%clk 0:01:42]} 18. Bxe3 {[%clk 0:01:53]}  dxe3 {[%clk 0:01:43]} 19. Qe2 {[%clk 0:01:41]}  Nf5 {[%clk 0:01:42]} 20. Rad1 {[%clk 0:01:35]}  Qb6 {[%clk 0:01:21]} 21. g4 {[%clk 0:01:33]}  Nd4 {[%clk 0:01:20]} 22. Qxe3 {[%clk 0:01:34]}  Qxb2 {[%clk 0:01:20]} 23. Rb1 {[%clk 0:01:28]}  Qxa3 {[%clk 0:01:19]} 24. Rxb7 {[%clk 0:01:29]}  Nc2 {[%clk 0:01:00]} 25. Qe2 {[%clk 0:01:25]}  Rxd3 {[%clk 0:00:58]} 26. Qxc2 {[%clk 0:00:58]}  Rxf3 {[%clk 0:00:57]} 27. Nd6 {[%clk 0:00:47]}  Qe3+ {[%clk 0:00:52]} 28. Kg2 {[%clk 0:00:38]}  Rxf1 {[%clk 0:00:43]} 29. Kxf1 {[%clk 0:00:36]}  Qxf4+ {[%clk 0:00:44]} 30. Qf2 {[%clk 0:00:25]}  Qxf2+ {[%clk 0:00:44]} 31. Kxf2 {[%clk 0:00:26]}  Rf8 {[%clk 0:00:44]} 32. Rxa7 {[%clk 0:00:16]}  Bxe5 {[%clk 0:00:44]} 33. Ne4 {[%clk 0:00:17]}  h6 {[%clk 0:00:39]} 34. Kg2 {[%clk 0:00:15]}  Rb8 {[%clk 0:00:33]} 35. Nxc5 {[%clk 0:00:14]}  Bd4 {[%clk 0:00:22]} 36. Rc7 {[%clk 0:00:12]}  Rb2+ {[%clk 0:00:21]} 37. Kh1 {[%clk 0:00:10]}  Be5 {[%clk 0:00:12]} 38. Rc8+ {[%clk 0:00:10]}  Kg7 {[%clk 0:00:13]} 39. Nd7 {[%clk 0:00:11]}  Rxh2+ {[%clk 0:00:11]} 40. Kg1 {[%clk 0:00:11]}  Re2 {[%clk 0:00:12]} 41. c5 {[%clk 0:00:10]}  Bd4+ {[%clk 0:00:12]} 42. Kf1 {[%clk 0:00:10]}  Rc2 {[%clk 0:00:13]} 43. c6 {[%clk 0:00:10]}  h5 {[%clk 0:00:12]} 44. gxh5 {[%clk 0:00:10]}  gxh5 {[%clk 0:00:13]} 45. c7 {[%clk 0:00:03]}  h4 {[%clk 0:00:13]} 0-1


[Site "https://www.chess.com"]

[Event "Titled Tuesday Blitz May 24 Early 2022"]
[White "Lauridsen, Jesper Morch"]
[Black "Proudian, Armen"]
[WhiteFideId "1401890"]
[BlackFideId "2130734"]
[WhiteElo "2244"]
[BlackElo "2380"]
[Result "0-1"]
[Round "06"]
[TimeControl "180+1"]
[Date "2022.05.25"]
[WhiteClock "0:00:06"]
[BlackClock "0:00:24"]

1. e4 {[%clk 0:02:57]}  e5 {[%clk 0:03:00]} 2. Nf3 {[%clk 0:02:55]}  Nc6 {[%clk 0:03:00]} 3. d4 {[%clk 0:02:55]}  exd4 {[%clk 0:03:00]} 4. Bc4 {[%clk 0:02:55]}  Nf6 {[%clk 0:03:00]} 5. e5 {[%clk 0:02:54]}  d5 {[%clk 0:03:00]} 6. Bb5 {[%clk 0:02:54]}  Nd7 {[%clk 0:02:59]} 7. O-O {[%clk 0:02:49]}  Bc5 {[%clk 0:02:49]} 8. Bg5 {[%clk 0:02:46]}  Be7 {[%clk 0:02:48]} 9. Bxc6 {[%clk 0:02:37]}  bxc6 {[%clk 0:02:42]} 10. Nxd4 {[%clk 0:02:37]}  Nb8 {[%clk 0:02:36]} 11. Bxe7 {[%clk 0:02:22]}  Qxe7 {[%clk 0:02:37]} 12. f4 {[%clk 0:02:12]}  O-O {[%clk 0:02:37]} 13. Nd2 {[%clk 0:01:58]}  c5 {[%clk 0:02:37]} 14. N4f3 {[%clk 0:01:54]}  Nc6 {[%clk 0:02:30]} 15. Nb3 {[%clk 0:01:46]}  d4 {[%clk 0:02:24]} 16. Qd3 {[%clk 0:01:41]}  a5 {[%clk 0:02:16]} 17. Ng5 {[%clk 0:01:38]}  g6 {[%clk 0:02:12]} 18. Rae1 {[%clk 0:01:37]}  Bf5 {[%clk 0:02:08]} 19. Qc4 {[%clk 0:01:31]}  Nb4 {[%clk 0:02:05]} 20. e6 {[%clk 0:01:18]}  f6 {[%clk 0:02:00]} 21. Nf7 {[%clk 0:01:09]}  Bxc2 {[%clk 0:01:51]} 22. Qxc5 {[%clk 0:01:03]}  Qxc5 {[%clk 0:01:48]} 23. Nxc5 {[%clk 0:01:03]}  d3 {[%clk 0:01:42]} 24. Nd7 {[%clk 0:01:00]}  d2 {[%clk 0:01:30]} 25. Rd1 {[%clk 0:00:48]}  Bxd1 {[%clk 0:01:28]} 26. Rxd1 {[%clk 0:00:48]}  Kg7 {[%clk 0:01:24]} 27. Nxf8 {[%clk 0:00:45]}  Rxf8 {[%clk 0:01:25]} 28. Rxd2 {[%clk 0:00:45]}  Re8 {[%clk 0:01:13]} 29. Rd7 {[%clk 0:00:43]}  Kf8 {[%clk 0:01:13]} 30. a3 {[%clk 0:00:34]}  Na6 {[%clk 0:01:08]} 31. f5 {[%clk 0:00:26]}  gxf5 {[%clk 0:01:08]} 32. Nh6 {[%clk 0:00:25]}  Rxe6 {[%clk 0:01:09]} 33. Nxf5 {[%clk 0:00:23]}  Rb6 {[%clk 0:00:59]} 34. Rxh7 {[%clk 0:00:18]}  Rxb2 {[%clk 0:01:00]} 35. h4 {[%clk 0:00:19]}  c5 {[%clk 0:00:48]} 36. h5 {[%clk 0:00:19]}  c4 {[%clk 0:00:31]} 37. Ra7 {[%clk 0:00:15]}  c3 {[%clk 0:00:30]} 38. Nd4 {[%clk 0:00:15]}  Nc5 {[%clk 0:00:28]} 39. h6 {[%clk 0:00:14]}  Kg8 {[%clk 0:00:28]} 40. h7+ {[%clk 0:00:14]}  Kh8 {[%clk 0:00:28]} 41. Rc7 {[%clk 0:00:12]}  c2 {[%clk 0:00:26]} 42. Rxc5 {[%clk 0:00:11]}  Rb1+ {[%clk 0:00:27]} 43. Kf2 {[%clk 0:00:11]}  c1=Q {[%clk 0:00:27]} 44. Rxc1 {[%clk 0:00:10]}  Rxc1 {[%clk 0:00:28]} 45. Nb3 {[%clk 0:00:08]}  Rc2+ {[%clk 0:00:26]} 46. Kf1 {[%clk 0:00:07]}  a4 {[%clk 0:00:27]} 47. Nd4 {[%clk 0:00:06]}  Rc3 {[%clk 0:00:24]} 48. Nb5 {[%clk 0:00:06]}  Rb3 {[%clk 0:00:24]} 0-1


[Site "https://www.chess.com"]

[Event "Titled Tuesday Blitz May 24 Early 2022"]
[White "Maksimovic, Bojan"]
[Black "Bluebaum, Matthias"]
[WhiteFideId "14408120"]
[BlackFideId "24651516"]
[WhiteElo "2448"]
[BlackElo "2556"]
[Result "0-1"]
[Round "06"]
[TimeControl "180+1"]
[Date "2022.05.24"]
[WhiteClock "0:00:02"]
[BlackClock "0:00:14"]

1. e4 {[%clk 0:03:00]}  c6 {[%clk 0:02:57]} 2. Bc4 {[%clk 0:03:00]}  d5 {[%clk 0:02:58]} 3. Bb3 {[%clk 0:03:01]}  dxe4 {[%clk 0:02:52]} 4. Qh5 {[%clk 0:03:01]}  g6 {[%clk 0:02:47]} 5. Qh4 {[%clk 0:03:01]}  Bg7 {[%clk 0:02:45]} 6. Nc3 {[%clk 0:03:01]}  Nf6 {[%clk 0:02:44]} 7. f3 {[%clk 0:03:01]}  e3 {[%clk 0:02:42]} 8. dxe3 {[%clk 0:03:01]}  O-O {[%clk 0:02:38]} 9. Nge2 {[%clk 0:03:00]}  Na6 {[%clk 0:02:36]} 10. e4 {[%clk 0:02:59]}  Nc5 {[%clk 0:02:34]} 11. Be3 {[%clk 0:02:59]}  Nxb3 {[%clk 0:02:34]} 12. axb3 {[%clk 0:03:00]}  b6 {[%clk 0:02:26]} 13. O-O {[%clk 0:02:59]}  Qc7 {[%clk 0:02:26]} 14. Bf4 {[%clk 0:02:53]}  e5 {[%clk 0:02:21]} 15. Bg5 {[%clk 0:02:50]}  Nd7 {[%clk 0:02:19]} 16. Rfd1 {[%clk 0:02:47]}  Re8 {[%clk 0:02:13]} 17. b4 {[%clk 0:02:34]}  Bb7 {[%clk 0:02:10]} 18. Bh6 {[%clk 0:02:23]}  Bh8 {[%clk 0:02:07]} 19. Bg5 {[%clk 0:02:17]}  f6 {[%clk 0:02:00]} 20. Be3 {[%clk 0:02:16]}  Nf8 {[%clk 0:02:00]} 21. Qf2 {[%clk 0:02:07]}  Qe7 {[%clk 0:01:42]} 22. b5 {[%clk 0:02:03]}  cxb5 {[%clk 0:01:39]} 23. Nxb5 {[%clk 0:02:04]}  Bc6 {[%clk 0:01:35]} 24. Nec3 {[%clk 0:01:46]}  a6 {[%clk 0:01:07]} 25. Nd6 {[%clk 0:01:46]}  Red8 {[%clk 0:01:06]} 26. Nc4 {[%clk 0:01:46]}  b5 {[%clk 0:01:05]} 27. Nb6 {[%clk 0:01:46]}  Rxd1+ {[%clk 0:01:03]} 28. Rxd1 {[%clk 0:01:47]}  Rd8 {[%clk 0:01:04]} 29. Nbd5 {[%clk 0:01:46]}  Qe8 {[%clk 0:00:54]} 30. Bb6 {[%clk 0:01:42]}  Rd7 {[%clk 0:00:52]} 31. Qc5 {[%clk 0:01:42]}  Bb7 {[%clk 0:00:43]} 32. b4 {[%clk 0:00:53]}  Ne6 {[%clk 0:00:42]} 33. Qe3 {[%clk 0:00:50]}  Bg7 {[%clk 0:00:37]} 34. Bc5 {[%clk 0:00:49]}  h6 {[%clk 0:00:33]} 35. h3 {[%clk 0:00:40]}  Kh7 {[%clk 0:00:33]} 36. Kh2 {[%clk 0:00:39]}  f5 {[%clk 0:00:33]} 37. Qd3 {[%clk 0:00:32]}  Bc6 {[%clk 0:00:30]} 38. exf5 {[%clk 0:00:27]}  Nf4 {[%clk 0:00:21]} 39. fxg6+ {[%clk 0:00:27]}  Kh8 {[%clk 0:00:22]} 40. Qe4 {[%clk 0:00:08]}  Qa8 {[%clk 0:00:22]} 41. Nxf4 {[%clk 0:00:04]}  Bxe4 {[%clk 0:00:23]} 42. Rxd7 {[%clk 0:00:05]}  Bf5 {[%clk 0:00:22]} 43. Rf7 {[%clk 0:00:03]}  Qc8 {[%clk 0:00:19]} 44. Nfd5 {[%clk 0:00:02]}  Bxg6 {[%clk 0:00:19]} 45. Ne7 {[%clk 0:00:02]}  Qe6 {[%clk 0:00:19]} 46. Nxg6+ {[%clk 0:00:03]}  Qxg6 {[%clk 0:00:20]} 47. Re7 {[%clk 0:00:02]}  Bf8 {[%clk 0:00:16]} 48. Rc7 {[%clk 0:00:01]}  Bxc5 {[%clk 0:00:14]} 49. Rxc5 {[%clk 0:00:02]}  Qxc2 {[%clk 0:00:15]} 50. Ne4 {[%clk 0:00:02]}  Qb2 {[%clk 0:00:15]} 51. Rc8+ {[%clk 0:00:02]}  Kg7 {[%clk 0:00:15]} 52. Rc7+ {[%clk 0:00:03]}  Kf8 {[%clk 0:00:16]} 53. Rc8+ {[%clk 0:00:03]}  Ke7 {[%clk 0:00:16]} 54. Rc6 {[%clk 0:00:02]}  Qxb4 {[%clk 0:00:16]} 55. Rxa6 {[%clk 0:00:03]}  h5 {[%clk 0:00:16]} 56. Rb6 {[%clk 0:00:03]}  Qb1 {[%clk 0:00:15]} 57. Rb7+ {[%clk 0:00:03]}  Kd8 {[%clk 0:00:15]} 58. Rb8+ {[%clk 0:00:02]}  Kc7 {[%clk 0:00:15]} 59. Rh8 {[%clk 0:00:02]}  Qc1 {[%clk 0:00:14]} 60. Rxh5 {[%clk 0:00:01]}  b4 {[%clk 0:00:15]} 61. Rh7+ {[%clk 0:00:01]}  Kb6 {[%clk 0:00:15]} 62. Rh8 {[%clk 0:00:02]}  Qf4+ {[%clk 0:00:15]} 63. Kh1 {[%clk 0:00:02]}  Ka7 {[%clk 0:00:14]} 64. Rh7+ {[%clk 0:00:02]}  Ka6 {[%clk 0:00:14]} 65. Rh8 {[%clk 0:00:02]}  b3 {[%clk 0:00:14]} 66. Rb8 {[%clk 0:00:03]}  b2 {[%clk 0:00:14]} 67. Ra8+ {[%clk 0:00:02]}  Kb7 {[%clk 0:00:14]} 0-1


[Site "https://www.chess.com"]

[Event "Titled Tuesday Blitz May 24 Early 2022"]
[White "Melaugh, Shane"]
[Black "Johnson, Ben"]
[WhiteFideId "2509580"]
[BlackFideId "2010917"]
[WhiteElo "1972"]
[BlackElo "2202"]
[Result "1-0"]
[Round "06"]
[TimeControl "180+1"]
[Date "2022.05.25"]
[WhiteClock "0:02:13"]
[BlackClock "0:00:43"]

1. c4 {[%clk 0:03:00]}  e5 {[%clk 0:02:59]} 2. Nc3 {[%clk 0:03:00]}  Nf6 {[%clk 0:02:59]} 3. Nf3 {[%clk 0:03:00]}  Nc6 {[%clk 0:02:59]} 4. e4 {[%clk 0:03:00]}  Bb4 {[%clk 0:02:54]} 5. d3 {[%clk 0:03:00]}  O-O {[%clk 0:02:50]} 6. Bg5 {[%clk 0:02:58]}  Bxc3+ {[%clk 0:02:43]} 7. bxc3 {[%clk 0:02:56]}  d6 {[%clk 0:02:41]} 8. h3 {[%clk 0:02:52]}  Qe7 {[%clk 0:02:31]} 9. Be2 {[%clk 0:02:49]}  Nd8 {[%clk 0:02:29]} 10. O-O {[%clk 0:02:41]}  Ne6 {[%clk 0:02:27]} 11. Bh4 {[%clk 0:02:41]}  h6 {[%clk 0:02:15]} 12. Ne1 {[%clk 0:02:41]}  g5 {[%clk 0:02:13]} 13. Bg3 {[%clk 0:02:40]}  Nf4 {[%clk 0:02:12]} 14. Nc2 {[%clk 0:02:38]}  c6 {[%clk 0:02:03]} 15. Ne3 {[%clk 0:02:36]}  d5 {[%clk 0:01:56]} 16. cxd5 {[%clk 0:02:33]}  cxd5 {[%clk 0:01:54]} 17. Bxf4 {[%clk 0:02:21]}  exf4 {[%clk 0:01:48]} 18. Nxd5 {[%clk 0:02:21]}  Nxd5 {[%clk 0:01:42]} 19. exd5 {[%clk 0:02:22]}  Bf5 {[%clk 0:01:12]} 20. d4 {[%clk 0:02:17]}  Rac8 {[%clk 0:01:04]} 21. Rc1 {[%clk 0:02:14]}  Qxe2 {[%clk 0:00:43]} 22. Qxe2 {[%clk 0:02:13]} 1-0


[Site "https://www.chess.com"]

[Event "Titled Tuesday Blitz May 24 Early 2022"]
[White "Melikyan, Gnel"]
[Black "Timofeev, Artyom"]
[WhiteFideId "54109990"]
[BlackFideId "4140419"]
[WhiteElo "1772"]
[BlackElo "2594"]
[Result "1/2-1/2"]
[Round "06"]
[TimeControl "180+1"]
[Date "2022.05.24"]
[WhiteClock "0:00:20"]
[BlackClock "0:00:04"]

1. e4 {[%clk 0:02:59]}  c6 {[%clk 0:02:59]} 2. d4 {[%clk 0:02:59]}  d5 {[%clk 0:02:59]} 3. f3 {[%clk 0:02:59]}  e6 {[%clk 0:02:53]} 4. Nc3 {[%clk 0:02:59]}  Bb4 {[%clk 0:02:52]} 5. Bf4 {[%clk 0:02:57]}  Nf6 {[%clk 0:02:49]} 6. Qd3 {[%clk 0:02:57]}  b6 {[%clk 0:02:46]} 7. Ne2 {[%clk 0:02:54]}  Ba6 {[%clk 0:02:44]} 8. Qe3 {[%clk 0:02:53]}  O-O {[%clk 0:02:41]} 9. O-O-O {[%clk 0:02:53]}  Nbd7 {[%clk 0:02:39]} 10. h4 {[%clk 0:02:47]}  c5 {[%clk 0:02:36]} 11. a3 {[%clk 0:02:34]}  Bxc3 {[%clk 0:02:23]} 12. Nxc3 {[%clk 0:02:32]}  Bxf1 {[%clk 0:02:22]} 13. Rhxf1 {[%clk 0:02:32]}  Rc8 {[%clk 0:02:07]} 14. Bd6 {[%clk 0:02:25]}  cxd4 {[%clk 0:01:34]} 15. Qxd4 {[%clk 0:01:56]}  Rc4 {[%clk 0:01:34]} 16. Qe3 {[%clk 0:01:48]}  Re8 {[%clk 0:01:30]} 17. b3 {[%clk 0:01:39]}  Rc6 {[%clk 0:01:26]} 18. e5 {[%clk 0:01:35]}  Qc8 {[%clk 0:01:17]} 19. Kb2 {[%clk 0:01:25]}  d4 {[%clk 0:01:16]} 20. Qxd4 {[%clk 0:01:14]}  Nd5 {[%clk 0:01:16]} 21. Nxd5 {[%clk 0:01:09]}  Rxc2+ {[%clk 0:01:15]} 22. Kb1 {[%clk 0:01:10]}  exd5 {[%clk 0:01:16]} 23. Rc1 {[%clk 0:01:10]}  Rxc1+ {[%clk 0:01:11]} 24. Rxc1 {[%clk 0:01:11]}  Qa6 {[%clk 0:01:11]} 25. Qxd5 {[%clk 0:01:05]}  Nc5 {[%clk 0:01:08]} 26. b4 {[%clk 0:00:59]}  Ne6 {[%clk 0:00:57]} 27. b5 {[%clk 0:00:50]}  Qa4 {[%clk 0:00:56]} 28. Qc4 {[%clk 0:00:50]}  Qa5 {[%clk 0:00:51]} 29. Bb4 {[%clk 0:00:47]}  Qa4 {[%clk 0:00:51]} 30. Kb2 {[%clk 0:00:42]}  h5 {[%clk 0:00:43]} 31. g4 {[%clk 0:00:39]}  hxg4 {[%clk 0:00:42]} 32. fxg4 {[%clk 0:00:38]}  Rd8 {[%clk 0:00:33]} 33. Bd6 {[%clk 0:00:38]}  Qa5 {[%clk 0:00:31]} 34. g5 {[%clk 0:00:37]}  Qd2+ {[%clk 0:00:31]} 35. Rc2 {[%clk 0:00:36]}  Qd1 {[%clk 0:00:21]} 36. g6 {[%clk 0:00:34]}  Qh5 {[%clk 0:00:21]} 37. gxf7+ {[%clk 0:00:33]}  Qxf7 {[%clk 0:00:21]} 38. Qd5 {[%clk 0:00:29]}  Re8 {[%clk 0:00:21]} 39. a4 {[%clk 0:00:19]}  Qf4 {[%clk 0:00:21]} 40. Qc4 {[%clk 0:00:19]}  Qf5 {[%clk 0:00:19]} 41. Qc6 {[%clk 0:00:20]}  Qf7 {[%clk 0:00:18]} 42. Qd5 {[%clk 0:00:19]}  Qf5 {[%clk 0:00:16]} 43. Qc4 {[%clk 0:00:20]}  Qf7 {[%clk 0:00:15]} 44. Rg2 {[%clk 0:00:21]}  Qf5 {[%clk 0:00:14]} 45. Qc3 {[%clk 0:00:21]}  Qf7 {[%clk 0:00:12]} 46. Qc2 {[%clk 0:00:21]}  Qf4 {[%clk 0:00:10]} 47. Qb3 {[%clk 0:00:21]}  Qd4+ {[%clk 0:00:10]} 48. Ka2 {[%clk 0:00:21]}  Qe4 {[%clk 0:00:09]} 49. Rc2 {[%clk 0:00:20]}  Qxh4 {[%clk 0:00:09]} 50. Rc7 {[%clk 0:00:18]}  Qf2+ {[%clk 0:00:07]} 51. Ka3 {[%clk 0:00:19]}  Qd4 {[%clk 0:00:04]} 52. Rxa7 {[%clk 0:00:19]}  Qa1+ {[%clk 0:00:04]} 53. Qa2 {[%clk 0:00:19]}  Qc3+ {[%clk 0:00:03]} 54. Qb3 {[%clk 0:00:19]}  Qa1+ {[%clk 0:00:04]} 55. Qa2 {[%clk 0:00:19]}  Qc3+ {[%clk 0:00:04]} 56. Qb3 {[%clk 0:00:20]}  Qa1+ {[%clk 0:00:04]} 1/2-1/2


[Site "https://www.chess.com"]

[Event "Titled Tuesday Blitz May 24 Early 2022"]
[White "Mestnikov, Aisen"]
[Black "Taboas Rodriguez, Daniel"]
[WhiteFideId "34130117"]
[BlackFideId "2208466"]
[WhiteElo "2027"]
[BlackElo "2429"]
[Result "0-1"]
[Round "06"]
[TimeControl "180+1"]
[Date "2022.05.25"]
[WhiteClock "0:00:08"]
[BlackClock "0:00:55"]

1. d4 {[%clk 0:03:00]}  Nf6 {[%clk 0:03:00]} 2. c4 {[%clk 0:03:00]}  g6 {[%clk 0:02:59]} 3. Nf3 {[%clk 0:03:01]}  Bg7 {[%clk 0:03:00]} 4. Nc3 {[%clk 0:03:01]}  O-O {[%clk 0:03:00]} 5. e4 {[%clk 0:03:02]}  d6 {[%clk 0:03:00]} 6. Be2 {[%clk 0:03:02]}  e5 {[%clk 0:03:00]} 7. d5 {[%clk 0:03:03]}  a5 {[%clk 0:02:59]} 8. Bg5 {[%clk 0:03:03]}  h6 {[%clk 0:02:59]} 9. Bh4 {[%clk 0:03:03]}  Na6 {[%clk 0:02:59]} 10. Nd2 {[%clk 0:03:01]}  Qe8 {[%clk 0:02:59]} 11. O-O {[%clk 0:03:00]}  Nh7 {[%clk 0:02:58]} 12. f3 {[%clk 0:02:59]}  f5 {[%clk 0:02:57]} 13. b3 {[%clk 0:02:59]}  h5 {[%clk 0:02:55]} 14. Bf2 {[%clk 0:02:55]}  Bh6 {[%clk 0:02:55]} 15. a3 {[%clk 0:02:50]}  Bd7 {[%clk 0:02:54]} 16. Rb1 {[%clk 0:02:44]}  Nc5 {[%clk 0:02:55]} 17. b4 {[%clk 0:02:05]}  axb4 {[%clk 0:02:55]} 18. axb4 {[%clk 0:02:05]}  Na4 {[%clk 0:02:56]} 19. Nxa4 {[%clk 0:02:04]}  Bxa4 {[%clk 0:02:57]} 20. Nb3 {[%clk 0:02:02]}  Nf6 {[%clk 0:02:57]} 21. Qd3 {[%clk 0:01:59]}  Bd7 {[%clk 0:02:52]} 22. c5 {[%clk 0:01:55]}  fxe4 {[%clk 0:02:51]} 23. fxe4 {[%clk 0:01:55]}  Ng4 {[%clk 0:02:47]} 24. Bxg4 {[%clk 0:01:51]}  Bxg4 {[%clk 0:02:48]} 25. cxd6 {[%clk 0:01:40]}  cxd6 {[%clk 0:02:47]} 26. Na5 {[%clk 0:01:41]}  Bd7 {[%clk 0:02:41]} 27. Qg3 {[%clk 0:01:10]}  b5 {[%clk 0:02:26]} 28. Be3 {[%clk 0:00:59]}  Bxe3+ {[%clk 0:02:23]} 29. Qxe3 {[%clk 0:01:00]}  Qe7 {[%clk 0:02:20]} 30. Qh6 {[%clk 0:00:40]}  Qg7 {[%clk 0:02:11]} 31. Qg5 {[%clk 0:00:40]}  Bg4 {[%clk 0:02:00]} 32. Nc6 {[%clk 0:00:31]}  Be2 {[%clk 0:02:00]} 33. Rfe1 {[%clk 0:00:21]}  Bd3 {[%clk 0:01:58]} 34. Rbd1 {[%clk 0:00:21]}  Bc4 {[%clk 0:01:55]} 35. Na5 {[%clk 0:00:09]}  Rac8 {[%clk 0:01:43]} 36. Nc6 {[%clk 0:00:08]}  Kh7 {[%clk 0:01:41]} 37. Re3 {[%clk 0:00:07]}  Qf6 {[%clk 0:01:37]} 38. Qxf6 {[%clk 0:00:05]}  Rxf6 {[%clk 0:01:38]} 39. Rf3 {[%clk 0:00:04]}  Rcf8 {[%clk 0:01:36]} 40. Rxf6 {[%clk 0:00:04]}  Rxf6 {[%clk 0:01:36]} 41. Na7 {[%clk 0:00:04]}  Rf4 {[%clk 0:01:31]} 42. Re1 {[%clk 0:00:04]}  Bd3 {[%clk 0:01:32]} 43. Re3 {[%clk 0:00:04]}  Bxe4 {[%clk 0:01:32]} 44. Nxb5 {[%clk 0:00:03]}  Bxd5 {[%clk 0:01:31]} 45. Nxd6 {[%clk 0:00:03]}  e4 {[%clk 0:01:31]} 46. g3 {[%clk 0:00:03]}  Rf6 {[%clk 0:01:30]} 47. Nxe4 {[%clk 0:00:03]}  Rb6 {[%clk 0:01:27]} 48. Kf2 {[%clk 0:00:01]}  Kg7 {[%clk 0:01:26]} 49. Ng5 {[%clk 0:00:01]}  Rxb4 {[%clk 0:01:25]} 50. Nf3 {[%clk 0:00:02]}  Rb2+ {[%clk 0:01:22]} 51. Re2 {[%clk 0:00:02]}  Rb3 {[%clk 0:01:22]} 52. Nd4 {[%clk 0:00:01]}  Rd3 {[%clk 0:01:21]} 53. Ne6+ {[%clk 0:00:02]}  Kf6 {[%clk 0:01:18]} 54. Nf4 {[%clk 0:00:03]}  Rd1 {[%clk 0:01:18]} 55. Nxd5+ {[%clk 0:00:03]}  Rxd5 {[%clk 0:01:19]} 56. Kf3 {[%clk 0:00:03]}  Kf5 {[%clk 0:01:18]} 57. Rf2 {[%clk 0:00:04]}  g5 {[%clk 0:01:11]} 58. Kg2+ {[%clk 0:00:05]}  Kg6 {[%clk 0:01:11]} 59. h3 {[%clk 0:00:04]}  Rd3 {[%clk 0:01:11]} 60. Re2 {[%clk 0:00:04]}  Kf5 {[%clk 0:01:11]} 61. Rf2+ {[%clk 0:00:05]}  Ke5 {[%clk 0:01:10]} 62. Re2+ {[%clk 0:00:05]}  Kf5 {[%clk 0:01:10]} 63. Rf2+ {[%clk 0:00:05]}  Ke4 {[%clk 0:01:11]} 64. Re2+ {[%clk 0:00:06]}  Re3 {[%clk 0:01:12]} 65. Rf2 {[%clk 0:00:06]}  Re1 {[%clk 0:01:05]} 66. Rb2 {[%clk 0:00:05]}  Rd1 {[%clk 0:01:02]} 67. Re2+ {[%clk 0:00:05]}  Kf5 {[%clk 0:00:59]} 68. Rf2+ {[%clk 0:00:05]}  Kg6 {[%clk 0:00:59]} 69. Re2 {[%clk 0:00:05]}  Rd3 {[%clk 0:00:57]} 70. Rf2 {[%clk 0:00:04]}  Re3 {[%clk 0:00:56]} 71. Rd2 {[%clk 0:00:04]}  Kf5 {[%clk 0:00:57]} 72. Rf2+ {[%clk 0:00:04]}  Ke4 {[%clk 0:00:56]} 73. Rd2 {[%clk 0:00:05]}  Re1 {[%clk 0:00:51]} 74. Rf2 {[%clk 0:00:05]}  Ke3 {[%clk 0:00:50]} 75. Rc2 {[%clk 0:00:05]}  Re2+ {[%clk 0:00:50]} 76. Rxe2+ {[%clk 0:00:05]}  Kxe2 {[%clk 0:00:51]} 77. g4 {[%clk 0:00:02]}  h4 {[%clk 0:00:51]} 78. Kg1 {[%clk 0:00:01]}  Kf3 {[%clk 0:00:51]} 79. Kh2 {[%clk 0:00:02]}  Kf2 {[%clk 0:00:51]} 80. Kh1 {[%clk 0:00:02]}  Kg3 {[%clk 0:00:52]} 81. Kg1 {[%clk 0:00:02]}  Kxh3 {[%clk 0:00:53]} 82. Kh1 {[%clk 0:00:03]}  Kxg4 {[%clk 0:00:54]} 83. Kg2 {[%clk 0:00:04]}  Kf4 {[%clk 0:00:54]} 84. Kh2 {[%clk 0:00:04]}  Kf3 {[%clk 0:00:54]} 85. Kh3 {[%clk 0:00:04]}  g4+ {[%clk 0:00:54]} 86. Kh2 {[%clk 0:00:05]}  g3+ {[%clk 0:00:54]} 87. Kg1 {[%clk 0:00:06]}  g2 {[%clk 0:00:52]} 88. Kh2 {[%clk 0:00:06]}  Kf2 {[%clk 0:00:53]} 89. Kh3 {[%clk 0:00:07]}  g1=Q {[%clk 0:00:54]} 90. Kxh4 {[%clk 0:00:08]}  Qg6 {[%clk 0:00:54]} 91. Kh3 {[%clk 0:00:08]}  Qh5# {[%clk 0:00:55]} 0-1


[Site "https://www.chess.com"]